fUST/lending_fUST_20240817
["ID","MTS","AMOUNT","RATE_DAILY","PERIOD"]
[335119147,1723863038413,-515.87245511,0.00047562,120]
[335119148,1723863038424,-515.87245511,0.00047562,120]
[335119149,1723863038435,-515.87245511,0.00047562,120]
[335119150,1723863038444,-515.87245511,0.00047562,120]
[335119151,1723863038456,-515.87245511,0.00047562,120]
[335119152,1723863038466,-515.87245511,0.00047562,120]
[335119153,1723863038476,-515.87245511,0.00047562,120]
[335119154,1723863038486,-515.87245511,0.00047562,120]
[335119155,1723863038496,-515.87245511,0.00047562,120]
[335119156,1723863038508,-515.87245511,0.00047562,120]
[335119157,1723863038518,-515.87245511,0.00047562,120]
[335119158,1723863038529,-515.87245511,0.00047562,120]
[335119159,1723863038539,-515.87245511,0.00047562,120]
[335119160,1723863038548,-99.11651405,0.00047562,120]
[335119161,1723863039539,-416.75594106,0.00047562,120]
[335119162,1723863039550,-515.87245511,0.00047562,120]
[335119163,1723863039560,-515.87245511,0.00047562,120]
[335119164,1723863039570,-515.87245511,0.00047562,120]
[335119165,1723863039579,-515.87245511,0.00047562,120]
[335119166,1723863039589,-515.87245511,0.00047562,120]
[335119167,1723863039598,-515.87245511,0.00047562,120]
[335119168,1723863039608,-515.87245511,0.00047562,120]
[335119169,1723863039616,-515.87245511,0.00047562,120]
[335119170,1723863039626,-515.87245511,0.00047562,120]
[335119171,1723863039635,-515.87245511,0.00047562,120]
[335119172,1723863039644,-515.87245511,0.00047562,120]
[335119173,1723863039654,-515.87245511,0.00047562,120]
[335119174,1723863039663,-515.87245511,0.00047562,120]
[335119175,1723863039673,-515.87245511,0.00047562,120]
[335119176,1723863039682,-515.87245511,0.00047562,120]
[335119177,1723863039692,-515.87245511,0.00047562,120]
[335119178,1723863039701,-515.87245511,0.00047562,120]
[335119179,1723863039710,-515.87245511,0.00047562,120]
[335119180,1723863039721,-515.87245511,0.00047562,120]
[335119181,1723863039730,-515.87245511,0.00047562,120]
[335119182,1723863039740,-515.87245511,0.00047562,120]
[335119183,1723863039750,-515.87245511,0.00047562,120]
[335119184,1723863039759,-515.87245511,0.00047562,120]
[335119185,1723863039769,-515.87245511,0.00047562,120]
[335119186,1723863039779,-515.87245511,0.00047562,120]
[335119187,1723863039787,-515.87245511,0.00047562,120]
[335119188,1723863039797,-179.41776,0.00047931,120]
[335119189,1723863039807,-179.41776,0.00047931,120]
[335119190,1723863039816,-151.0,0.00047931,120]
[335119191,1723863039826,-5886.44035437,0.00047984,5]
[335119192,1723863039836,-151.0,0.00047984,120]
[335119193,1723863039845,-151.0,0.00047984,120]
[335119194,1723863039855,-190.934376,0.00047984,120]
[335119195,1723863039864,-190.934376,0.00047984,120]
[335119196,1723863039873,-1000.0,0.00048,30]
[335119198,1723863039883,-153.0,0.00048356,2]
[335119200,1723863039892,-153.0,0.00048356,2]
[335119201,1723863039902,-153.0,0.00048356,2]
[335119202,1723863039911,-153.0,0.00048356,2]
[335119203,1723863039921,-153.0,0.00048356,2]
[335119204,1723863039930,-153.9417523,0.00048356,2]
[335119205,1723863039939,-2000.0,0.00048369,120]
[335119206,1723863039949,-5083.74336331,0.00048529,120]
[335119207,1723863039958,-753.69747105,0.00048574,2]
[335119208,1723863039967,-2000.0,0.00048674,120]
[335119209,1723863039977,-5083.74336331,0.00048925,120]
[335119210,1723863039986,-1525.32753051,0.00048937,28]
[335119211,1723863039996,-10308.97307979,0.00048954,6]
[335119212,1723863040035,521.1431857,0.00014519,2]
[335119220,1723863040588,-553.21713821,0.00048954,6]
[335119221,1723863040602,-1540.46282919,0.00048954,6]
[335119222,1723863043168,-455.57166693,0.00048954,6]
[335119223,1723863044235,493.19534037,0.00014519,2]
[335119230,1723863046203,-500.0,0.00047562,120]
[335119231,1723863046212,-500.0,0.00047562,120]
[335119232,1723863046222,-500.0,0.00047562,120]
[335119233,1723863046231,-500.0,0.00047562,120]
[335119234,1723863046242,-500.0,0.00047562,120]
[335119235,1723863046253,-500.0,0.00047562,120]
[335119236,1723863046265,-500.0,0.00047562,120]
[335119237,1723863046276,-500.0,0.00047562,120]
[335119238,1723863046287,-500.0,0.00047562,120]
[335119239,1723863046297,-500.0,0.00047562,120]
[335119240,1723863046308,-500.0,0.00047562,120]
[335119241,1723863046318,-500.0,0.00047562,120]
[335119242,1723863046327,-500.0,0.00047562,120]
[335119243,1723863046337,-500.0,0.00047562,120]
[335119244,1723863046346,-500.0,0.00047562,120]
[335119245,1723863046355,-500.0,0.00047562,120]
[335119246,1723863046365,-500.0,0.00047562,120]
[335119247,1723863046376,-500.0,0.00047562,120]
[335119248,1723863046385,-500.0,0.00047562,120]
[335119249,1723863046395,-500.0,0.00047562,120]
[335119250,1723863046404,-500.0,0.00047562,120]
[335119251,1723863046413,-500.0,0.00047562,120]
[335119252,1723863046423,-1817.46163571,0.00048954,6]
[335119253,1723863046670,4240.99764846,0.00037869,2]
[335119254,1723863046691,2617.56759858,0.00037869,2]
[335119255,1723863046715,-434.26649374,0.00037869,2]
[335119267,1723863701939,-300.0,0.00012096,2]
[335119268,1723863701968,-10164.1814271,0.00012097,2]
[335119269,1723863701997,-200.9371404,0.00012573,2]
[335119270,1723863702026,-14334.8814325,0.00012779,2]
[335119271,1723863704229,-6455.59191423,0.00012779,2]
[335119272,1723863704255,-18544.40808577,0.00012782,2]
[335119273,1723863705235,-25000.0,0.00012782,2]
[335119274,1723863706279,-11912.86933472,0.00012782,2]
[335119275,1723863706304,-8842.60162724,0.00012782,2]
[335119276,1723863706331,-2544.01294861,0.000128,2]
[335119277,1723863706357,-1700.51608943,0.00012805,2]
[335119278,1723863707602,-23199.48391057,0.00012805,2]
[335119279,1723863713356,1613.12693484,0.00012999,2]
[335119280,1723863750686,187.38915459,0.00012999,2]
[335119287,1723863953174,-185.32831444,0.00012489,2]
[335119288,1723864025090,-300.0,0.00012319,2]
[335119289,1723864025113,-24900.0,0.0001232,2]
[335119290,1723864025134,-3496.58370658,0.00012489,2]
[335119291,1723864025155,-6265.67165536,0.00012489,2]
[335119292,1723864025176,-9715.8095157,0.00012873,2]
[335119293,1723864025197,-1657.2714768,0.00012898,2]
[335119294,1723864025218,-817.31278804,0.00012971,2]
[335119295,1723864025239,-408.01784024,0.00012989,2]
[335119296,1723864025261,-487.20304533,0.00012991,2]
[335119297,1723864025282,-154.80649189,0.00012991,2]
[335119298,1723864025303,-247.12796354,0.00012991,2]
[335119299,1723864025323,-288.21318058,0.00012991,2]
[335119300,1723864025343,-339.89322208,0.00012999,2]
[335119301,1723864025364,-493.19534037,0.00012999,2]
[335119302,1723864025385,-156.97830418,0.00012999,2]
[335119303,1723864025406,-155.25893316,0.00013025,2]
[335119304,1723864025429,-997.42632145,0.00013051,2]
[335119305,1723864025450,-280.52663375,0.00013051,2]
[335119306,1723864025474,-165.211607,0.00013191,2]
[335119307,1723864025496,-165.211607,0.00013227,2]
[335119308,1723864025521,-165.211607,0.00013263,2]
[335119309,1723864025544,-165.211607,0.000133,2]
[335119310,1723864025571,-171.11503915,0.00013333,2]
[335119311,1723864025614,-165.211607,0.00013336,2]
[335119312,1723864025661,-165.211607,0.00013372,2]
[335119313,1723864025702,-165.211607,0.00013408,2]
[335119314,1723864025742,-165.211607,0.00013444,2]
[335119315,1723864025777,-933.43837954,0.00013477,2]
[335119316,1723864025820,-165.211607,0.0001348,2]
[335119317,1723864025850,-1372.95170332,0.00013496,2]
[335119318,1723864025883,-521.1431857,0.00013496,2]
[335119319,1723864025916,-301.46890977,0.00013497,2]
[335119320,1723864025953,-301.46890977,0.00013497,2]
[335119321,1723864025990,-165.211607,0.00013517,2]
[335119322,1723864026023,-420.0,0.0001355,2]
[335119323,1723864026060,-165.211607,0.00013553,2]
[335119324,1723864026093,-165.211607,0.00013589,2]
[335119325,1723864026128,-203.9860017,0.00013597,2]
[335119326,1723864026160,-155.33089774,0.00013597,2]
[335119327,1723864026193,-3966.39587167,0.00013597,2]
[335119328,1723864028151,-5873.42228702,0.00013597,2]
[335119329,1723864034291,-45617.4592618,0.00013597,2]
[335119330,1723864034316,-5950.02694635,0.00013599,2]
[335119331,1723864034341,-165.211607,0.00013625,2]
[335119332,1723864034367,-165.211607,0.00013661,2]
[335119333,1723864034391,-323.69462074,0.00013697,2]
[335119334,1723864034415,-165.211607,0.00013697,2]
[335119335,1723864034438,-893.7219664,0.00013698,2]
[335119336,1723864034464,-500.0,0.00013699,2]
[335119337,1723864034488,-500.0,0.00013699,2]
[335119338,1723864034511,-500.0,0.00013699,2]
[335119339,1723864034534,-48.27006574,0.00013699,2]
[335119340,1723864044136,-1319.16033114,0.00013599,2]
[335119341,1723864044160,-12.56318759,0.00013699,2]
[335119342,1723864046095,-439.16674667,0.00013699,2]
[335119343,1723864046117,-500.0,0.00013699,2]
[335119344,1723864046138,-500.0,0.00013699,2]
[335119345,1723864046161,-367.6558461,0.00013699,2]
[335119346,1723864046182,-500.0,0.00013699,2]
[335119347,1723864046204,-500.0,0.00013699,2]
[335119348,1723864046227,-165.211607,0.00013734,2]
[335119349,1723864046249,-152.96131615,0.0001377,2]
[335119366,1723864146101,-495.03477669,0.00013698,2]
[335119367,1723864146125,-12.25029085,0.0001377,2]
[335119368,1723864146149,-165.211607,0.00013806,2]
[335119369,1723864146172,-165.211607,0.00013842,2]
[335119370,1723864146195,-165.211607,0.00013878,2]
[335119371,1723864146217,-29366.58784653,0.00013971,2]
[335119372,1723864146242,-553.13179842,0.00014519,2]
[335119373,1723864146266,-265.38621463,0.00014519,2]
[335119374,1723864146287,-817.31278804,0.00014519,3]
[335119375,1723864146310,-493.19534037,0.00014519,2]
[335119376,1723864146333,-300.0,0.00015137,2]
[335119377,1723864146355,-207.15720901,0.00016206,2]
[335119378,1723864146378,-420.0,0.00016651,2]
[335119379,1723864146401,-260.0,0.00018316,2]
[335119380,1723864146423,-485.29509401,0.00019999,2]
[335119381,1723864146545,-584.84811723,0.0002,2]
[335119382,1723864146568,-3215.23521352,0.0002,2]
[335119383,1723864146591,-2035.21035892,0.00025739,2]
[335119384,1723864146615,-336.6717376,0.00029,30]
[335119385,1723864146637,-151.0,0.0003,120]
[335119386,1723864146660,-151.0,0.0003,120]
[335119387,1723864146682,-1876.39241959,0.0003117,2]
[335119390,1723864159155,-158.81793929,0.0003117,2]
[335119391,1723864159179,-3000.0,0.000317,9]
[335119392,1723864159203,-3000.0,0.0003171,9]
[335119393,1723864159226,-5402.514125,0.0003172,9]
[335119394,1723864159250,-597.0,0.00035775,2]
[335119395,1723864159274,-597.0,0.00035775,2]
[335119396,1723864159298,-597.0,0.00035775,2]
[335119397,1723864159320,-597.0,0.00035775,2]
[335119398,1723864159344,-597.0,0.00035775,2]
[335119399,1723864159366,-597.0,0.00035775,2]
[335119400,1723864159389,-597.0,0.00035775,2]
[335119401,1723864159412,-597.0,0.00035775,2]
[335119402,1723864159436,-597.0,0.00035775,2]
[335119403,1723864159460,-597.0,0.00035775,2]
[335119404,1723864159483,-597.0,0.00035775,2]
[335119405,1723864159506,-597.0,0.00035775,2]
[335119406,1723864159529,-597.0,0.00035775,2]
[335119407,1723864159553,-597.0,0.00035775,2]
[335119408,1723864159577,-178.0,0.00035775,2]
[335119409,1723864159599,-178.0,0.00035775,2]
[335119410,1723864159621,-178.0,0.00035775,2]
[335119411,1723864159644,-178.0,0.00035775,2]
[335119412,1723864159666,-178.0,0.00035775,2]
[335119413,1723864159689,-178.0,0.00035775,2]
[335119414,1723864159711,-178.0,0.00035775,2]
[335119415,1723864159738,-178.0,0.00035775,2]
[335119416,1723864159762,-178.0,0.00035775,2]
[335119417,1723864159788,-178.0,0.00035775,2]
[335119418,1723864159810,-178.0,0.00035775,2]
[335119419,1723864159833,-178.0,0.00035775,2]
[335119420,1723864159856,-178.0,0.00035775,2]
[335119421,1723864159885,-178.0,0.00035775,2]
[335119422,1723864159908,-597.0,0.00035775,2]
[335119423,1723864159930,-597.0,0.00035775,2]
[335119424,1723864159952,-597.0,0.00035775,2]
[335119425,1723864159974,-597.0,0.00035775,2]
[335119426,1723864159996,-597.0,0.00035775,2]
[335119427,1723864160018,-597.0,0.00035775,2]
[335119428,1723864160041,-597.0,0.00035775,2]
[335119429,1723864160065,-597.0,0.00035775,2]
[335119430,1723864160089,-597.0,0.00035775,2]
[335119431,1723864160113,-597.0,0.00035775,2]
[335119432,1723864160135,-597.0,0.00035775,2]
[335119433,1723864160158,-597.0,0.00035775,2]
[335119434,1723864160180,-597.0,0.00035775,2]
[335119435,1723864160201,-597.0,0.00035775,2]
[335119436,1723864160224,-178.0,0.00035775,2]
[335119437,1723864160246,-178.0,0.00035775,2]
[335119438,1723864160268,-178.0,0.00035775,2]
[335119439,1723864160290,-178.0,0.00035775,2]
[335119440,1723864160311,-178.0,0.00035775,2]
[335119441,1723864160333,-178.0,0.00035775,2]
[335119442,1723864160354,-178.0,0.00035775,2]
[335119443,1723864160382,-178.0,0.00035775,2]
[335119444,1723864160403,-178.0,0.00035775,2]
[335119445,1723864160424,-178.0,0.00035775,2]
[335119446,1723864160446,-178.0,0.00035775,2]
[335119447,1723864160469,-178.0,0.00035775,2]
[335119448,1723864160579,-178.0,0.00035775,2]
[335119449,1723864160602,-178.0,0.00035775,2]
[335119450,1723864160625,-597.0,0.00035775,2]
[335119451,1723864160650,-597.0,0.00035775,2]
[335119452,1723864160674,-597.0,0.00035775,2]
[335119453,1723864160696,-597.0,0.00035775,2]
[335119454,1723864160717,-597.0,0.00035775,2]
[335119455,1723864160740,-597.0,0.00035775,2]
[335119456,1723864160762,-597.0,0.00035775,2]
[335119457,1723864160788,-597.0,0.00035775,2]
[335119458,1723864160811,-597.0,0.00035775,2]
[335119459,1723864160836,-597.0,0.00035775,2]
[335119460,1723864160861,-597.0,0.00035775,2]
[335119461,1723864160883,-597.0,0.00035775,2]
[335119462,1723864160906,-597.0,0.00035775,2]
[335119463,1723864160929,-597.0,0.00035775,2]
[335119464,1723864160950,-106.12006898,0.00035775,2]
[335119465,1723864161285,-71.87993102,0.00035775,2]
[335119466,1723864161307,-178.0,0.00035775,2]
[335119467,1723864161330,-62.16096983,0.00035775,2]
[335119468,1723864171113,-115.83903017,0.00035775,2]
[335119469,1723864171137,-178.0,0.00035775,2]
[335119470,1723864171160,-178.0,0.00035775,2]
[335119471,1723864171183,-20.99505486,0.00035775,2]
[335119472,1723864173171,-157.00494514,0.00035775,2]
[335119473,1723864173194,-178.0,0.00035775,2]
[335119474,1723864173218,-178.0,0.00035775,2]
[335119475,1723864173240,-178.0,0.00035775,2]
[335119476,1723864173265,-178.0,0.00035775,2]
[335119477,1723864173288,-178.0,0.00035775,2]
[335119478,1723864173318,-178.0,0.00035775,2]
[335119479,1723864173342,-178.0,0.00035775,2]
[335119480,1723864173366,-178.0,0.00035775,2]
[335119481,1723864173391,-559.371053,0.00036469,2]
[335119482,1723864173413,-1945.51646409,0.00036601,2]
[335119488,1723864225444,151.69521147,0.00014519,2]
[335119523,1723864232442,-343.33956522,0.00014519,2]
[335119525,1723864232451,-341.0,0.00035775,2]
[335119527,1723864232463,-341.0,0.00035775,2]
[335119529,1723864232473,-50.60958218,0.00035775,2]
[335119545,1723864232591,-290.39041782,0.00035775,2]
[335119547,1723864232600,-341.0,0.00035775,2]
[335119549,1723864232610,-341.0,0.00035775,2]
[335119551,1723864232619,-341.0,0.00035775,2]
[335119553,1723864232629,-341.0,0.00035775,2]
[335119555,1723864232639,-341.0,0.00035775,2]
[335119557,1723864232648,-341.0,0.00035775,2]
[335119559,1723864232658,-341.0,0.00035775,2]
[335119561,1723864232668,-341.0,0.00035775,2]
[335119563,1723864232677,-341.0,0.00035775,2]
[335119564,1723864232689,-341.0,0.00035775,2]
[335119566,1723864232698,-341.0,0.00035775,2]
[335119567,1723864232707,-341.0,0.00035775,2]
[335119568,1723864232717,-341.0,0.00035775,2]
[335119569,1723864232726,-341.0,0.00035775,2]
[335119570,1723864232736,-341.0,0.00035775,2]
[335119572,1723864232745,-341.0,0.00035775,2]
[335119573,1723864232754,-341.0,0.00035775,2]
[335119574,1723864232764,-4.69932463,0.00035775,2]
[335119575,1723864232776,-336.30067537,0.00035775,2]
[335119576,1723864232785,-85.72339363,0.00035775,2]
[335119577,1723864233196,-255.27660637,0.00035775,2]
[335119578,1723864233206,-341.0,0.00035775,2]
[335119579,1723864233217,-341.0,0.00035775,2]
[335119580,1723864233227,-341.0,0.00035775,2]
[335119581,1723864233236,-153.0,0.00035775,2]
[335119582,1723864233246,-153.0,0.00035775,2]
[335119583,1723864233256,-153.0,0.00035775,2]
[335119584,1723864233266,-153.0,0.00035775,2]
[335119585,1723864233276,-153.0,0.00035775,2]
[335119586,1723864233285,-153.0,0.00035775,2]
[335119587,1723864233295,-153.0,0.00035775,2]
[335119588,1723864233305,-153.0,0.00035775,2]
[335119589,1723864233315,-153.0,0.00035775,2]
[335119590,1723864233326,-153.0,0.00035775,2]
[335119591,1723864233336,-153.0,0.00035775,2]
[335119592,1723864233345,-153.0,0.00035775,2]
[335119593,1723864233355,-153.0,0.00035775,2]
[335119594,1723864233365,-153.0,0.00035775,2]
[335119595,1723864233375,-153.0,0.00035775,2]
[335119596,1723864233384,-153.0,0.00035775,2]
[335119597,1723864233394,-89.69389479,0.00036601,2]
[335119598,1723864233404,-3016.37778789,0.000375,25]
[335119599,1723864233577,-1226.25,0.000375,25]
[335119633,1723864238627,-5511.13412208,0.000375,25]
[335119648,1723864238758,-246.23809003,0.000375,25]
[335119650,1723864238767,-469.71855265,0.00038293,2]
[335119652,1723864238777,-14.99530321,0.00038575,120]
[335119689,1723864240019,-136.00469679,0.00038575,120]
[335119690,1723864240030,-1201.33274037,0.0003878,2]
[335119691,1723864240039,-668.82,0.0003887,3]
[335119692,1723864240049,-334.41,0.0003887,3]
[335119693,1723864240059,-167.2,0.0003887,3]
[335119694,1723864240069,-52948.0994475,0.0003887,4]
[335119695,1723864240081,-500.0,0.00038879,15]
[335119696,1723864240091,-500.0,0.00038879,15]
[335119697,1723864240101,-360.35649388,0.00038879,15]
[335119698,1723864240111,-80279.0,0.0003888,120]
[335119699,1723864240121,-154.22,0.000397,31]
[335119700,1723864240131,-154.22,0.000397,31]
[335119701,1723864240143,-154.22,0.000397,31]
[335119702,1723864240153,-154.22,0.000397,31]
[335119703,1723864240163,-154.22,0.000397,31]
[335119705,1723864240173,-154.22,0.000397,31]
[335119706,1723864240183,-154.22,0.000397,31]
[335119707,1723864240194,-154.22,0.000397,31]
[335119708,1723864240204,-154.22,0.000397,31]
[335119709,1723864240214,-1337.64,0.0004024,3]
[335119710,1723864240225,-668.82,0.0004024,3]
[335119711,1723864240235,-334.4,0.0004024,3]
[335119712,1723864240245,-150.112233,0.000403,8]
[335119713,1723864240257,-2035.21035888,0.00042031,2]
[335119714,1723864240266,-150.112233,0.000426,10]
[335119715,1723864240276,-233.08543083,0.00043118,60]
[335119716,1723864240286,-9679.60148279,0.00043174,120]
[335119717,1723864240296,-26474.0497237,0.00043176,5]
[335119718,1723864240305,-25944.7469,0.00043179,30]
[335119719,1723864240315,-1254.99084536,0.00043363,5]
[335119720,1723864240324,-440.77583997,0.00043363,2]
[335119721,1723864240334,-397.93317498,0.00043363,2]
[335119722,1723864240343,-2169.6169262,0.00043363,4]
[335119723,1723864240353,-4830.74993993,0.00043363,4]
[335119724,1723864240363,-862.23977155,0.00043363,4]
[335119725,1723864240372,-500.0,0.00044118,60]
[335119726,1723864240383,-150.112233,0.000448,9]
[335119727,1723864240393,-10126.29,0.00045,30]
[335119728,1723864240404,-500.0,0.00045392,30]
[335119729,1723864240414,-52948.0994475,0.0004598,5]
[335119730,1723864240424,-36147.81347611,0.0004599,61]
[335119731,1723864240436,-3229.39544436,0.0004599,61]
[335119733,1723864240753,-501.64,0.0003887,3]
[335119734,1723864240762,-220.81159099,0.0004599,61]
[335119735,1723864240775,-17440.49378201,0.0004599,61]
[335119736,1723864240786,-41813.01014055,0.0004599,61]
[335119737,1723864240889,-147.96927986,0.0004599,61]
[335119750,1723864244410,-0.21543163,0.00014519,3]
[335119751,1723864244422,-609.51885624,0.00014519,3]
[335119752,1723864244433,-207.57850017,0.00014519,3]
[335119753,1723864244443,-653.28257429,0.0004599,61]
[335119754,1723864244454,-459.69835721,0.0004599,61]
[335119755,1723864244654,-718.31652803,0.0004599,61]
[335119756,1723864244666,-498.73053817,0.0004599,61]
[335119757,1723864244677,-5585.16558436,0.0004599,61]
[335119768,1723864246596,-1529.72813973,0.0004599,61]
[335119769,1723864246609,-1298.8312022,0.0004599,5]
[335119770,1723864246633,-23.5585614,0.0004599,5]
[335119780,1723865229172,-300.0,0.00012355,2]
[335119781,1723865229197,-300.0,0.00012355,2]
[335119782,1723865229221,-737.75145503,0.00012356,2]
[335119783,1723865233153,-4681.51537453,0.00012551,2]
[335119784,1723865234124,-3522.41679405,0.00012551,2]
[335119785,1723865235241,-333.22758537,0.00012551,2]
[335119786,1723865235266,-433.15827014,0.00012782,2]
[335119787,1723865294137,273.37336231,9.9e-05,2]
[335119788,1723865309460,273.37336231,9.9e-05,2]
[335119797,1723865325421,273.37336231,9.9e-05,2]
[335119798,1723865340742,273.37336231,9.9e-05,2]
[335119799,1723865342933,309.76695296,0.00012,2]
[335119802,1723865348181,-250.0,0.0001254,2]
[335119803,1723865348205,-250.0,0.00012574,2]
[335119804,1723865348233,-250.0,0.00012608,2]
[335119805,1723865348254,-1613.12693484,0.00012629,2]
[335119806,1723865348277,-2165.76966456,0.00012629,2]
[335119807,1723865348301,-250.0,0.00012643,2]
[335119808,1723865348324,-250.0,0.00012677,2]
[335119809,1723865348347,-250.0,0.00012711,2]
[335119810,1723865348370,-250.0,0.00012746,2]
[335119811,1723865348393,-250.0,0.0001278,2]
[335119812,1723865348416,-250.0,0.00012815,2]
[335119813,1723865348439,-250.0,0.00012849,2]
[335119814,1723865348462,-250.0,0.00012883,2]
[335119815,1723865348485,-250.0,0.00012918,2]
[335119816,1723865348505,-817.31278804,0.00012934,2]
[335119817,1723865348528,-250.0,0.00012952,2]
[335119818,1723865348550,-154.65203293,0.00012985,2]
[335119819,1723865348577,-288.15834108,0.00012985,2]
[335119820,1723865348601,-250.0,0.00012987,2]
[335119821,1723865348623,-440.77583997,0.00012989,2]
[335119822,1723865348645,-5101.13228626,0.00013,2]
[335119823,1723865348671,-862.23977155,0.00013,2]
[335119824,1723865348696,-250.0,0.00013021,2]
[335119825,1723865348721,-250.0,0.00013055,2]
[335119826,1723865348746,-250.0,0.0001309,2]
[335119827,1723865348769,-250.0,0.00013124,2]
[335119828,1723865348792,-250.0,0.00013158,2]
[335119829,1723865348817,-250.0,0.00013193,2]
[335119830,1723865348838,-449.25707595,0.00013477,2]
[335119831,1723865348861,-495.03477669,0.00013496,2]
[335119832,1723865348882,-158.06603325,0.00013597,2]
[335119833,1723865348904,-154.79103211,0.00013599,2]
[335119834,1723865348926,-397.93317498,0.00013698,2]
[335119835,1723865348949,-3000.0,0.00013699,2]
[335119836,1723865348973,-454.6053446,0.00013699,2]
[335119837,1723865348995,-606.71743082,0.00013792,2]
[335119838,1723865349020,-196.77032424,0.00013792,2]
[335119839,1723865349044,-157.05086627,0.00013792,2]
[335119840,1723865349068,-20048.52899187,0.00013971,2]
[335119841,1723865349091,-154.96095085,0.00013971,2]
[335119842,1723865349116,-2038.64040614,0.00014038,2]
[335119843,1723865349139,-405.4467408,0.0001406,2]
[335119844,1723865349162,-389.41412537,0.0001406,2]
[335119845,1723865349185,-544.02690175,0.0001406,2]
[335119846,1723865349208,-243.26631301,0.0001406,2]
[335119847,1723865349237,-24900.0,0.00014061,2]
[335119848,1723865349260,-1199.5760532,0.00014138,2]
[335119849,1723865349284,-230.69175979,0.00015493,2]
[335119850,1723865349312,-156.82259234,0.00015493,2]
[335119851,1723865349334,-206.74474317,0.00015493,2]
[335119852,1723865349358,-184.68790596,0.00015493,2]
[335119853,1723865349383,-8528.0580785,0.00015493,2]
[335119854,1723865349406,-156.82259234,0.00015493,2]
[335119855,1723865349429,-2038.64040607,0.00026304,2]
[335119856,1723865349451,-336.6717376,0.00029,30]
[335119857,1723865349473,-151.0,0.0003,120]
[335119858,1723865349494,-150.1560743,0.0003,7]
[335119859,1723865349517,-150.0,0.000323,11]
[335119860,1723865349540,-999.6555625,0.00033663,2]
[335119861,1723865349562,-645.53023454,0.00035,120]
[335119862,1723865349657,-349.7251479,0.00035,120]
[335119863,1723865349679,-697.31575295,0.0003857,2]
[335119864,1723865353131,356.75448895,9.9e-05,2]
[335119865,1723865354103,-1341.32465312,0.0003857,2]
[335119866,1723865354124,-151.0,0.0004,120]
[335119867,1723865354144,-3921.46645247,0.0004,30]
[335119868,1723865356066,273.37336231,9.9e-05,2]
[335119869,1723865363097,-154.65203293,0.00012971,2]
[335119870,1723865363143,-615.93293282,0.0004,30]
[335119871,1723865363167,-190.75988406,0.0004,2]
[335119872,1723865363192,-5605.43850787,0.00041223,5]
[335119873,1723865369121,-492.83408503,0.00041223,5]
[335119874,1723865372997,273.37336231,9.9e-05,2]
[335119875,1723865384137,310.27131559,0.00012,2]
[335119877,1723865388239,1330.32905494,0.00012,2]
[335119878,1723865390517,862.23977155,0.00013,2]
[335119879,1723865395392,817.31278804,0.00012,2]
[335119880,1723865395937,181.82997886,0.00012,2]
[335119881,1723865398334,197.9252533,0.00012,2]
[335119882,1723865403187,241.76594369,0.00012,2]
[335119883,1723865404987,494.37643623,0.00012,2]
[335119910,1723865432500,-269.81583379,0.00041223,5]
[335119912,1723865432513,-2868.52466684,0.00041223,5]
[335119915,1723865432526,-1118.45,0.00041223,5]
[335119929,1723865438604,-148.63905056,0.00041223,5]
[335119930,1723865438615,-1256.44656581,0.00041223,5]
[335119931,1723865439721,-18682.1137886,0.00041223,5]
[335119932,1723865439731,-577.49,0.00041223,30]
[335119933,1723865439742,-793.68,0.00041223,30]
[335119934,1723865439753,-661.4,0.00041223,30]
[335119935,1723865439764,-551.17,0.00041223,30]